[Event "Late-Titled-Tuesday-Blitz-March-19-2024"]
[Site "Chess.com"]
[Date "2024.03.19"]
[Round "3"]
[White "Rakitic2010"]
[Black "yuriydovzik"]
[Result "1-0"]
[WhiteElo "2578"]
[BlackElo "2116"]
[TimeControl "180+1"]
[EndTime "14:28:18 PDT"]
[Termination "Rakitic2010 won on time"]

1. e4 {[%clk 0:03:00.9]} 1... c6 {[%clk 0:02:58.4]} 2. Nf3 {[%clk 0:02:58.8]}
2... g6 {[%clk 0:02:53.8]} 3. d4 {[%clk 0:02:57]} 3... Na6 {[%clk 0:02:52.2]} 4.
Bxa6 {[%clk 0:02:50.3]} 4... Qa5+ {[%clk 0:02:51]} 5. Nc3 {[%clk 0:02:51.2]}
5... Qxa6 {[%clk 0:02:50.7]} 6. h4 {[%clk 0:02:48.1]} 6... h6 {[%clk 0:02:36.4]}
7. Be3 {[%clk 0:02:41.6]} 7... d6 {[%clk 0:02:29]} 8. a4 {[%clk 0:02:36.5]} 8...
Bg4 {[%clk 0:02:24.1]} 9. b4 {[%clk 0:02:27.9]} 9... b6 {[%clk 0:02:13.3]} 10.
d5 {[%clk 0:02:22.8]} 10... Qc4 {[%clk 0:02:02.7]} 11. Bd4 {[%clk 0:02:08.4]}
11... Nf6 {[%clk 0:01:52]} 12. Qd3 {[%clk 0:01:52.8]} 12... Qxd3 {[%clk
0:01:38.5]} 13. cxd3 {[%clk 0:01:53.7]} 13... c5 {[%clk 0:01:36.9]} 14. bxc5
{[%clk 0:01:47.3]} 14... bxc5 {[%clk 0:01:31.7]} 15. Bxf6 {[%clk 0:01:45.6]}
15... exf6 {[%clk 0:01:30.7]} 16. Nd2 {[%clk 0:01:44.4]} 16... Bd7 {[%clk
0:01:17.6]} 17. h5 {[%clk 0:01:38.4]} 17... Bg7 {[%clk 0:01:10.7]} 18. Nc4
{[%clk 0:01:35.5]} 18... f5 {[%clk 0:00:56.9]} 19. Kd2 {[%clk 0:01:28.7]} 19...
Ke7 {[%clk 0:00:43.6]} 20. Rae1 {[%clk 0:01:22.3]} 20... f4 {[%clk 0:00:40.6]}
21. hxg6 {[%clk 0:00:56.3]} 21... fxg6 {[%clk 0:00:39.3]} 22. f3 {[%clk
0:00:50.6]} 22... Rab8 {[%clk 0:00:37.7]} 23. Kc2 {[%clk 0:00:47.6]} 23... Rb4
{[%clk 0:00:35.2]} 24. Rb1 {[%clk 0:00:37.6]} 24... Rhb8 {[%clk 0:00:33.7]} 25.
Rxb4 {[%clk 0:00:34.9]} 25... Rxb4 {[%clk 0:00:33.5]} 26. Nb5 {[%clk 0:00:24.6]}
26... Rxa4 {[%clk 0:00:21.4]} 27. Nbxd6 {[%clk 0:00:21.1]} 27... Ra2+ {[%clk
0:00:20]} 28. Kb3 {[%clk 0:00:20.3]} 28... Rxg2 {[%clk 0:00:17.4]} 29. Nb7
{[%clk 0:00:19.8]} 29... Bd4 {[%clk 0:00:08.2]} 30. Rxh6 {[%clk 0:00:13.8]}
30... Bb5 {[%clk 0:00:05.9]} 31. Rh7+ {[%clk 0:00:13.2]} 31... Kf6 {[%clk
0:00:04.9]} 32. d6 {[%clk 0:00:07.9]} 32... Rg1 {[%clk 0:00:02]} 33. d7 {[%clk
0:00:04.4]} 1-0

[Event "Late-Titled-Tuesday-Blitz-March-19-2024"]
[Site "Chess.com"]
[Date "2024.03.19"]
[Round "3"]
[White "Airquake"]
[Black "uzkuzk"]
[Result "0-1"]
[WhiteElo "2635"]
[BlackElo "2502"]
[TimeControl "180+1"]
[EndTime "14:28:22 PDT"]
[Termination "uzkuzk won on time"]

1. f3 {[%clk 0:03:00.9]} 1... e5 {[%clk 0:02:15.3]} 2. Kf2 {[%clk 0:03:01.8]}
2... Nf6 {[%clk 0:02:00.7]} 3. g3 {[%clk 0:03:01.5]} 3... Nc6 {[%clk 0:01:59.5]}
4. Kg2 {[%clk 0:03:02.4]} 4... d5 {[%clk 0:01:59.7]} 5. d3 {[%clk 0:02:59.7]}
5... Be7 {[%clk 0:01:59.1]} 6. Nc3 {[%clk 0:02:58]} 6... O-O {[%clk 0:01:57.2]}
7. e4 {[%clk 0:02:58.2]} 7... Be6 {[%clk 0:01:45.8]} 8. h4 {[%clk 0:02:50.4]}
8... Qd7 {[%clk 0:01:44.1]} 9. Nh3 {[%clk 0:02:49.5]} 9... h6 {[%clk 0:01:38.8]}
10. Nf2 {[%clk 0:02:47.9]} 10... Rad8 {[%clk 0:01:35.2]} 11. Be2 {[%clk
0:02:47]} 11... Nd4 {[%clk 0:01:33.8]} 12. g4 {[%clk 0:02:42.4]} 12... Nxe2
{[%clk 0:01:24.5]} 13. Qxe2 {[%clk 0:02:42.3]} 13... dxe4 {[%clk 0:01:23.1]} 14.
dxe4 {[%clk 0:02:40]} 14... Bc5 {[%clk 0:01:11.7]} 15. g5 {[%clk 0:02:39.3]}
15... Nh5 {[%clk 0:01:11.7]} 16. gxh6 {[%clk 0:02:39.1]} 16... g6 {[%clk
0:01:11.8]} 17. Nd3 {[%clk 0:02:20.4]} 17... Bd4 {[%clk 0:01:05]} 18. Bg5 {[%clk
0:02:19.7]} 18... f6 {[%clk 0:01:04.2]} 19. Bd2 {[%clk 0:02:19.7]} 19... f5
{[%clk 0:01:03.9]} 20. Bg5 {[%clk 0:02:18.5]} 20... fxe4 {[%clk 0:01:03]} 21.
Qxe4 {[%clk 0:02:17.2]} 21... Bf5 {[%clk 0:00:59.2]} 22. Qxb7 {[%clk 0:02:16.3]}
22... Bxc3 {[%clk 0:00:50.3]} 23. Bxd8 {[%clk 0:02:15.9]} 23... e4 {[%clk
0:00:29.3]} 24. h7+ {[%clk 0:02:14.1]} 24... Kxh7 {[%clk 0:00:27.8]} 25. Qxc7
{[%clk 0:02:13.7]} 25... Rxd8 {[%clk 0:00:24.7]} 26. Qxd7+ {[%clk 0:02:07.4]}
26... Rxd7 {[%clk 0:00:25.6]} 27. bxc3 {[%clk 0:02:01]} 27... exd3 {[%clk
0:00:25.9]} 28. cxd3 {[%clk 0:02:01.9]} 28... Rxd3 {[%clk 0:00:26.1]} 29. Rhd1
{[%clk 0:01:57.4]} 29... Rxc3 {[%clk 0:00:26.3]} 30. Rac1 {[%clk 0:01:57.8]}
30... Nf4+ {[%clk 0:00:24.1]} 31. Kf2 {[%clk 0:01:56.2]} 31... Nd3+ {[%clk
0:00:23.8]} 32. Rxd3 {[%clk 0:01:53.9]} 32... Rxc1 {[%clk 0:00:21.8]} 33. Ra3
{[%clk 0:01:53.9]} 33... Rc2+ {[%clk 0:00:21.1]} 34. Kg3 {[%clk 0:01:53.7]}
34... Rc7 {[%clk 0:00:22]} 35. Rb3 {[%clk 0:01:52.1]} 35... Kh6 {[%clk
0:00:22.2]} 36. Rb8 {[%clk 0:01:52]} 36... Rc3 {[%clk 0:00:20.3]} 37. Rb2 {[%clk
0:01:45.9]} 37... Ra3 {[%clk 0:00:20.2]} 38. Re2 {[%clk 0:01:45.4]} 38... Kg7
{[%clk 0:00:18.5]} 39. Kf4 {[%clk 0:01:44.4]} 39... Kf6 {[%clk 0:00:18.5]} 40.
Rd2 {[%clk 0:01:43.8]} 40... Ra4+ {[%clk 0:00:18.7]} 41. Kg3 {[%clk 0:01:44]}
41... Be6 {[%clk 0:00:18.9]} 42. Rd7 {[%clk 0:01:32.2]} 42... Bxd7 {[%clk
0:00:18.6]} 0-1

[Event "Late-Titled-Tuesday-Blitz-March-19-2024"]
[Site "Chess.com"]
[Date "2024.03.19"]
[Round "3"]
[White "SpeedofLight0"]
[Black "Lennis93"]
[Result "1-0"]
[WhiteElo "3072"]
[BlackElo "2739"]
[TimeControl "180+1"]
[EndTime "14:28:23 PDT"]
[Termination "SpeedofLight0 won by checkmate"]

1. d4 {[%clk 0:03:00.9]} 1... Nf6 {[%clk 0:02:58.1]} 2. Nc3 {[%clk 0:03:01]}
2... d5 {[%clk 0:02:57.8]} 3. Bf4 {[%clk 0:03:01.6]} 3... a6 {[%clk 0:02:54.8]}
4. e3 {[%clk 0:03:01.5]} 4... Bf5 {[%clk 0:02:54]} 5. Bd3 {[%clk 0:03:01.5]}
5... Bxd3 {[%clk 0:02:53.8]} 6. cxd3 {[%clk 0:03:02.4]} 6... e6 {[%clk
0:02:52.5]} 7. Qb3 {[%clk 0:03:02.4]} 7... b5 {[%clk 0:02:50.1]} 8. Nf3 {[%clk
0:03:02.4]} 8... Nbd7 {[%clk 0:02:48.5]} 9. O-O {[%clk 0:03:02.5]} 9... c5
{[%clk 0:02:31.3]} 10. dxc5 {[%clk 0:03:03.4]} 10... Bxc5 {[%clk 0:02:29.6]} 11.
Rac1 {[%clk 0:03:03.2]} 11... O-O {[%clk 0:02:29.1]} 12. Ne2 {[%clk 0:03:01]}
12... Qe7 {[%clk 0:02:24]} 13. Rc3 {[%clk 0:02:47.4]} 13... Nh5 {[%clk
0:01:26.4]} 14. Bg5 {[%clk 0:02:35]} 14... f6 {[%clk 0:01:25.5]} 15. Bh4 {[%clk
0:02:35]} 15... g5 {[%clk 0:01:24.5]} 16. Bg3 {[%clk 0:02:33.7]} 16... Rfc8
{[%clk 0:01:05.9]} 17. Rfc1 {[%clk 0:02:32.2]} 17... Nb6 {[%clk 0:01:05.8]} 18.
Qc2 {[%clk 0:02:23.7]} 18... Nxg3 {[%clk 0:00:57.4]} 19. hxg3 {[%clk 0:02:19.6]}
19... Bb4 {[%clk 0:00:57.6]} 20. Rc6 {[%clk 0:02:17.4]} 20... Qd7 {[%clk
0:00:42.3]} 21. g4 {[%clk 0:01:50.4]} 21... Bd6 {[%clk 0:00:34]} 22. Ned4 {[%clk
0:01:47.6]} 22... Rxc6 {[%clk 0:00:29.8]} 23. Nxc6 {[%clk 0:01:34.1]} 23... Rc8
{[%clk 0:00:29.3]} 24. Nfd4 {[%clk 0:01:31.1]} 24... Rc7 {[%clk 0:00:15.9]} 25.
Qc3 {[%clk 0:01:16.9]} 25... Be5 {[%clk 0:00:12.5]} 26. Qc5 {[%clk 0:01:13.9]}
26... Na4 {[%clk 0:00:08.9]} 27. Qc2 {[%clk 0:01:04.2]} 27... Kg7 {[%clk
0:00:05.7]} 28. b3 {[%clk 0:01:03]} 28... Bxd4 {[%clk 0:00:02.5]} 29. exd4
{[%clk 0:01:03.3]} 29... Nb6 {[%clk 0:00:02.7]} 30. Qc5 {[%clk 0:01:03.5]} 30...
Nc8 {[%clk 0:00:02.9]} 31. a4 {[%clk 0:00:40]} 31... Na7 {[%clk 0:00:03]} 32.
axb5 {[%clk 0:00:38.5]} 32... axb5 {[%clk 0:00:03.5]} 33. Ra1 {[%clk 0:00:33.1]}
33... Nxc6 {[%clk 0:00:03.1]} 34. Ra8 {[%clk 0:00:32.8]} 34... Ne7 {[%clk
0:00:03]} 35. Qb6 {[%clk 0:00:32.2]} 35... Rb7 {[%clk 0:00:03]} 36. Qa6 {[%clk
0:00:32]} 36... Ng6 {[%clk 0:00:03.3]} 37. Qa3 {[%clk 0:00:31.1]} 37... Nf4
{[%clk 0:00:03.6]} 38. Qf8+ {[%clk 0:00:30.9]} 38... Kg6 {[%clk 0:00:04.2]} 39.
Qg8+ {[%clk 0:00:30.9]} 39... Qg7 {[%clk 0:00:03.4]} 40. Qe8+ {[%clk 0:00:31.1]}
40... Qf7 {[%clk 0:00:03.8]} 41. Qh8 {[%clk 0:00:28.7]} 41... Kh6 {[%clk
0:00:03.2]} 42. Rf8 {[%clk 0:00:27.9]} 42... Qg7 {[%clk 0:00:03.2]} 43. Rxf6+
{[%clk 0:00:28.2]} 43... Ng6 {[%clk 0:00:03.6]} 44. Qd8 {[%clk 0:00:28.8]} 44...
Rd7 {[%clk 0:00:03]} 45. Rxg6+ {[%clk 0:00:22.4]} 45... hxg6 {[%clk 0:00:03.9]}
46. Qb8 {[%clk 0:00:22.1]} 46... Rf7 {[%clk 0:00:04.1]} 47. Qh2# {[%clk
0:00:22.2]} 1-0

[Event "Late-Titled-Tuesday-Blitz-March-19-2024"]
[Site "Chess.com"]
[Date "2024.03.19"]
[Round "3"]
[White "picturesquecheck"]
[Black "campochess"]
[Result "1-0"]
[WhiteElo "2416"]
[BlackElo "2195"]
[TimeControl "180+1"]
[EndTime "14:28:24 PDT"]
[Termination "picturesquecheck won by resignation"]

1. e4 {[%clk 0:02:24.6]} 1... c5 {[%clk 0:02:59.6]} 2. Nf3 {[%clk 0:02:21.4]}
2... Nc6 {[%clk 0:02:59.5]} 3. Bb5 {[%clk 0:02:20.6]} 3... e5 {[%clk 0:02:58.3]}
4. O-O {[%clk 0:02:19.5]} 4... Bd6 {[%clk 0:02:58.2]} 5. c3 {[%clk 0:02:14.5]}
5... Nge7 {[%clk 0:02:57.8]} 6. d4 {[%clk 0:02:13.3]} 6... Qc7 {[%clk
0:02:57.2]} 7. d5 {[%clk 0:02:10.8]} 7... Nd8 {[%clk 0:02:56]} 8. Nbd2 {[%clk
0:02:10.4]} 8... O-O {[%clk 0:02:54.8]} 9. a4 {[%clk 0:02:10.1]} 9... a6 {[%clk
0:02:54.2]} 10. Bd3 {[%clk 0:02:09]} 10... f5 {[%clk 0:02:52.1]} 11. Re1 {[%clk
0:02:08.9]} 11... f4 {[%clk 0:02:49.6]} 12. Nc4 {[%clk 0:02:02.4]} 12... Nf7
{[%clk 0:02:49.2]} 13. Bd2 {[%clk 0:01:58]} 13... b6 {[%clk 0:02:41]} 14. b4
{[%clk 0:01:55.1]} 14... a5 {[%clk 0:02:37.2]} 15. bxa5 {[%clk 0:01:52.6]} 15...
bxa5 {[%clk 0:02:36.1]} 16. Rb1 {[%clk 0:01:52.6]} 16... Ba6 {[%clk 0:02:29]}
17. Qe2 {[%clk 0:01:50.8]} 17... Bxc4 {[%clk 0:02:27.4]} 18. Bxc4 {[%clk
0:01:50.6]} 18... Rab8 {[%clk 0:02:25.2]} 19. Rb5 {[%clk 0:01:49.5]} 19... Rxb5
{[%clk 0:02:16.8]} 20. Bxb5 {[%clk 0:01:50.4]} 20... Qa7 {[%clk 0:02:04.8]} 21.
c4 {[%clk 0:01:48.5]} 21... Bb8 {[%clk 0:02:04.5]} 22. Bc3 {[%clk 0:01:47.9]}
22... d6 {[%clk 0:02:04.6]} 23. Qd2 {[%clk 0:01:48]} 23... Nc8 {[%clk
0:01:57.4]} 24. Bxa5 {[%clk 0:01:45.4]} 24... Qe7 {[%clk 0:01:30.3]} 25. h3
{[%clk 0:01:41.1]} 25... g5 {[%clk 0:01:30.2]} 26. Bc3 {[%clk 0:01:34.5]} 26...
h5 {[%clk 0:01:29.7]} 27. Nh2 {[%clk 0:01:33.4]} 27... Nh6 {[%clk 0:01:24.9]}
28. Qe2 {[%clk 0:01:32.5]} 28... Qf7 {[%clk 0:01:23.7]} 29. a5 {[%clk
0:01:31.8]} 29... Kh7 {[%clk 0:01:17]} 30. a6 {[%clk 0:01:26.4]} 30... Rg8
{[%clk 0:01:16.4]} 31. f3 {[%clk 0:01:26]} 31... Na7 {[%clk 0:00:42.6]} 32. Rb1
{[%clk 0:01:23.5]} 32... Bc7 {[%clk 0:00:42.4]} 33. Bc6 {[%clk 0:01:22.5]} 33...
Rb8 {[%clk 0:00:41.8]} 34. Rxb8 {[%clk 0:01:19.1]} 34... Bxb8 {[%clk 0:00:41.6]}
35. Qb2 {[%clk 0:01:19.5]} 35... Qc7 {[%clk 0:00:40.5]} 36. Nf1 {[%clk
0:01:04.5]} 36... g4 {[%clk 0:00:39.7]} 37. Ba5 {[%clk 0:00:46.1]} 37... Qc8
{[%clk 0:00:36.8]} 38. hxg4 {[%clk 0:00:40.8]} 38... hxg4 {[%clk 0:00:35.6]} 39.
Qb7+ {[%clk 0:00:40.8]} 39... Kg6 {[%clk 0:00:23.7]} 40. Bb6 {[%clk 0:00:39.1]}
40... Qxb7 {[%clk 0:00:21.5]} 41. Bxb7 {[%clk 0:00:39.7]} 41... gxf3 {[%clk
0:00:17.4]} 42. gxf3 {[%clk 0:00:39.6]} 42... Nf7 {[%clk 0:00:17.6]} 43. Nd2
{[%clk 0:00:38.9]} 43... Kf6 {[%clk 0:00:15.4]} 44. Nb3 {[%clk 0:00:39.1]} 44...
Ke7 {[%clk 0:00:15.3]} 45. Na5 {[%clk 0:00:39.3]} 45... Kd7 {[%clk 0:00:14.5]}
46. Bxa7 {[%clk 0:00:39.4]} 46... Bxa7 {[%clk 0:00:13.7]} 47. Nc6 {[%clk
0:00:40.1]} 47... Bb6 {[%clk 0:00:12.5]} 48. a7 {[%clk 0:00:40.5]} 48... Bxa7
{[%clk 0:00:11.3]} 49. Nxa7 {[%clk 0:00:41.4]} 49... Kc7 {[%clk 0:00:11.1]} 50.
Bc6 {[%clk 0:00:41.7]} 50... Kb6 {[%clk 0:00:11]} 51. Nb5 {[%clk 0:00:42.6]}
51... Nd8 {[%clk 0:00:09.5]} 52. Nxd6 {[%clk 0:00:41.9]} 52... Nxc6 {[%clk
0:00:08.7]} 53. dxc6 {[%clk 0:00:42.5]} 53... Kxc6 {[%clk 0:00:08.7]} 54. Nb5
{[%clk 0:00:43.4]} 54... Kb6 {[%clk 0:00:07.9]} 55. Kf2 {[%clk 0:00:44.3]} 1-0

[Event "Late-Titled-Tuesday-Blitz-March-19-2024"]
[Site "Chess.com"]
[Date "2024.03.19"]
[Round "3"]
[White "Mops_2004"]
[Black "Pawngobblerx2000"]
[Result "1-0"]
[WhiteElo "2737"]
[BlackElo "2517"]
[TimeControl "180+1"]
[EndTime "14:28:26 PDT"]
[Termination "Mops_2004 won by resignation"]

1. e4 {[%clk 0:03:00.9]} 1... c5 {[%clk 0:02:58]} 2. Nf3 {[%clk 0:03:01.1]} 2...
d6 {[%clk 0:02:56.5]} 3. d4 {[%clk 0:03:01.2]} 3... cxd4 {[%clk 0:02:57.4]} 4.
Nxd4 {[%clk 0:03:01.8]} 4... Nf6 {[%clk 0:02:57.7]} 5. Nc3 {[%clk 0:03:02.2]}
5... g6 {[%clk 0:02:58]} 6. h3 {[%clk 0:03:01.8]} 6... Bg7 {[%clk 0:02:57.3]} 7.
g3 {[%clk 0:03:01.8]} 7... Nc6 {[%clk 0:02:56.4]} 8. Be3 {[%clk 0:03:01.6]} 8...
O-O {[%clk 0:02:54.9]} 9. Bg2 {[%clk 0:03:01.5]} 9... Bd7 {[%clk 0:02:36.9]} 10.
a4 {[%clk 0:03:00.9]} 10... Ne5 {[%clk 0:02:29.7]} 11. b3 {[%clk 0:03:00.7]}
11... Rc8 {[%clk 0:02:25.1]} 12. Qd2 {[%clk 0:02:51.8]} 12... Qa5 {[%clk
0:02:23.3]} 13. Nd5 {[%clk 0:02:51.4]} 13... Qxd2+ {[%clk 0:02:22.7]} 14. Kxd2
{[%clk 0:02:52.3]} 14... Nxd5 {[%clk 0:02:22.7]} 15. exd5 {[%clk 0:02:53.2]}
15... f5 {[%clk 0:02:17.8]} 16. Rhe1 {[%clk 0:02:46.5]} 16... Rfe8 {[%clk
0:02:13.8]} 17. f4 {[%clk 0:02:43.4]} 17... Nf7 {[%clk 0:02:13.4]} 18. Rac1
{[%clk 0:02:33.9]} 18... b6 {[%clk 0:02:01.3]} 19. c4 {[%clk 0:02:32.3]} 19...
Nd8 {[%clk 0:02:00.9]} 20. b4 {[%clk 0:01:51.3]} 20... e5 {[%clk 0:01:46.2]} 21.
Nb5 {[%clk 0:01:41.3]} 21... Bxb5 {[%clk 0:01:41.6]} 22. cxb5 {[%clk 0:01:39.8]}
22... Nb7 {[%clk 0:01:24.4]} 23. Rc6 {[%clk 0:01:37.7]} 23... exf4 {[%clk
0:01:11.6]} 24. Bxf4 {[%clk 0:01:30.5]} 24... Rcd8 {[%clk 0:00:58.6]} 25. Rc7
{[%clk 0:01:28.2]} 25... Rxe1 {[%clk 0:00:49.8]} 26. Kxe1 {[%clk 0:01:28]} 26...
Rb8 {[%clk 0:00:49.5]} 27. Kd2 {[%clk 0:01:19.6]} 27... h6 {[%clk 0:00:49.4]}
28. g4 {[%clk 0:01:09.9]} 28... g5 {[%clk 0:00:49.1]} 29. Be3 {[%clk 0:01:05.9]}
29... f4 {[%clk 0:00:49.2]} 30. Bf2 {[%clk 0:01:06.1]} 30... Be5 {[%clk
0:00:34.7]} 31. Be4 {[%clk 0:01:02.4]} 31... Bg7 {[%clk 0:00:28.1]} 32. Bf5
{[%clk 0:00:58.3]} 32... Kf8 {[%clk 0:00:23.5]} 33. Be6 {[%clk 0:00:52.7]} 33...
Nd8 {[%clk 0:00:18.2]} 34. Rxa7 {[%clk 0:00:51.4]} 34... Nxe6 {[%clk 0:00:17.7]}
35. dxe6 {[%clk 0:00:52.3]} 35... Be5 {[%clk 0:00:14.9]} 36. Kd3 {[%clk
0:00:42.3]} 36... d5 {[%clk 0:00:11.3]} 37. Rd7 {[%clk 0:00:33.7]} 37... d4
{[%clk 0:00:10.2]} 38. Bxd4 {[%clk 0:00:30.8]} 38... Bxd4 {[%clk 0:00:10.6]} 39.
Kxd4 {[%clk 0:00:28.3]} 39... Ra8 {[%clk 0:00:11]} 40. Ke5 {[%clk 0:00:27.4]}
40... Rxa4 {[%clk 0:00:10.8]} 41. Kf6 {[%clk 0:00:27.6]} 41... Ra8 {[%clk
0:00:09.8]} 42. Rh7 {[%clk 0:00:14.7]} 42... Kg8 {[%clk 0:00:09.7]} 43. Rg7+
{[%clk 0:00:15.1]} 43... Kf8 {[%clk 0:00:09.6]} 44. e7+ {[%clk 0:00:15.2]} 1-0

[Event "Late-Titled-Tuesday-Blitz-March-19-2024"]
[Site "Chess.com"]
[Date "2024.03.19"]
[Round "3"]
[White "czasnaszachy"]
[Black "Longstom"]
[Result "1/2-1/2"]
[WhiteElo "2426"]
[BlackElo "2230"]
[TimeControl "180+1"]
[EndTime "14:28:27 PDT"]
[Termination "Game drawn - insufficient material"]

1. e4 {[%clk 0:03:00.9]} 1... c5 {[%clk 0:02:59.2]} 2. Nf3 {[%clk 0:03:00.5]}
2... d6 {[%clk 0:02:57.4]} 3. d4 {[%clk 0:03:00.2]} 3... cxd4 {[%clk 0:02:57.3]}
4. Nxd4 {[%clk 0:03:01.1]} 4... g6 {[%clk 0:02:57.8]} 5. c4 {[%clk 0:02:54.8]}
5... Bg7 {[%clk 0:02:58]} 6. Nc3 {[%clk 0:02:54.4]} 6... Nc6 {[%clk 0:02:57.8]}
7. Be3 {[%clk 0:02:54.4]} 7... Nf6 {[%clk 0:02:58]} 8. Be2 {[%clk 0:02:51.9]}
8... O-O {[%clk 0:02:57.1]} 9. O-O {[%clk 0:02:51.1]} 9... Bd7 {[%clk
0:02:57.5]} 10. h3 {[%clk 0:02:42.4]} 10... Rc8 {[%clk 0:02:52.2]} 11. Qc2
{[%clk 0:02:12.4]} 11... Ng4 {[%clk 0:02:26.6]} 12. Bxg4 {[%clk 0:01:58.7]}
12... Nxd4 {[%clk 0:02:26.1]} 13. Qd3 {[%clk 0:01:52.8]} 13... Bxg4 {[%clk
0:02:23.9]} 14. hxg4 {[%clk 0:01:53.6]} 14... Nc6 {[%clk 0:02:10.2]} 15. Bf4
{[%clk 0:01:00.5]} 15... Nb4 {[%clk 0:02:01.4]} 16. Qe2 {[%clk 0:00:55.7]} 16...
Bxc3 {[%clk 0:02:01.8]} 17. bxc3 {[%clk 0:00:56]} 17... Na6 {[%clk 0:02:02.2]}
18. e5 {[%clk 0:00:49.4]} 18... dxe5 {[%clk 0:02:01.9]} 19. Bh6 {[%clk
0:00:47.6]} 19... Qa5 {[%clk 0:01:36.6]} 20. Bxf8 {[%clk 0:00:45]} 20... Kxf8
{[%clk 0:01:37.5]} 21. Rab1 {[%clk 0:00:36.2]} 21... b6 {[%clk 0:01:36.8]} 22.
Rb5 {[%clk 0:00:34.5]} 22... Qxc3 {[%clk 0:01:36.4]} 23. Rxe5 {[%clk 0:00:33]}
23... Qxc4 {[%clk 0:01:34]} 24. Rxe7 {[%clk 0:00:30.9]} 24... Qxe2 {[%clk
0:01:33.8]} 25. Rxe2 {[%clk 0:00:31.8]} 25... Rc4 {[%clk 0:01:31.4]} 26. f3
{[%clk 0:00:30.3]} 26... Nc5 {[%clk 0:01:30.5]} 27. Rd1 {[%clk 0:00:27.8]} 27...
Ra4 {[%clk 0:01:21.7]} 28. Rd8+ {[%clk 0:00:19.7]} 28... Kg7 {[%clk 0:01:21.2]}
29. Rdd2 {[%clk 0:00:06.4]} 29... Rb4 {[%clk 0:01:18.9]} 30. Kf2 {[%clk
0:00:06.6]} 30... Rb1 {[%clk 0:01:15.9]} 31. Kg3 {[%clk 0:00:06.7]} 31... Rc1
{[%clk 0:01:11.1]} 32. g5 {[%clk 0:00:06.3]} 32... Rc3 {[%clk 0:01:11.1]} 33.
Re8 {[%clk 0:00:04.2]} 33... h6 {[%clk 0:01:06.9]} 34. gxh6+ {[%clk 0:00:03.4]}
34... Kxh6 {[%clk 0:01:07.8]} 35. Re7 {[%clk 0:00:03.8]} 35... Kg5 {[%clk
0:01:06.1]} 36. Rxa7 {[%clk 0:00:03.3]} 36... Ne4+ {[%clk 0:01:05.7]} 37. Kh2
{[%clk 0:00:03.2]} 37... Nxd2 {[%clk 0:01:06]} 38. Rxf7 {[%clk 0:00:03.2]} 38...
Rc2 {[%clk 0:01:04.6]} 39. Rb7 {[%clk 0:00:03.6]} 39... Nxf3+ {[%clk 0:01:04.4]}
40. Kg3 {[%clk 0:00:03.1]} 40... Ne1 {[%clk 0:01:02.9]} 41. Rxb6 {[%clk
0:00:03.3]} 41... Rxg2+ {[%clk 0:01:03.4]} 42. Kh3 {[%clk 0:00:02.3]} 42... Rxa2
{[%clk 0:01:03]} 43. Rb5+ {[%clk 0:00:03]} 43... Kh6 {[%clk 0:01:01.3]} 44. Rb1
{[%clk 0:00:03.9]} 44... Nd3 {[%clk 0:01:00.7]} 45. Rb3 {[%clk 0:00:03.4]} 45...
Rd2 {[%clk 0:00:57.1]} 46. Kg3 {[%clk 0:00:03.3]} 46... Kh5 {[%clk 0:00:55.9]}
47. Rb8 {[%clk 0:00:02.3]} 47... Nc5 {[%clk 0:00:48.5]} 48. Rh8+ {[%clk
0:00:03.2]} 48... Kg5 {[%clk 0:00:48.2]} 49. Rc8 {[%clk 0:00:04.1]} 49... Rd5
{[%clk 0:00:47.9]} 50. Re8 {[%clk 0:00:03.3]} 50... Rf5 {[%clk 0:00:47.5]} 51.
Re3 {[%clk 0:00:02.2]} 51... Nd7 {[%clk 0:00:46.8]} 52. Ra3 {[%clk 0:00:02.7]}
52... Nf6 {[%clk 0:00:46.8]} 53. Ra6 {[%clk 0:00:02.8]} 53... Nh5+ {[%clk
0:00:47]} 54. Kg2 {[%clk 0:00:03.1]} 54... Kg4 {[%clk 0:00:46.6]} 55. Rxg6+
{[%clk 0:00:03]} 55... Rg5 {[%clk 0:00:47.1]} 56. Rxg5+ {[%clk 0:00:03.1]} 56...
Kxg5 {[%clk 0:00:47.9]} 1/2-1/2

[Event "Late-Titled-Tuesday-Blitz-March-19-2024"]
[Site "Chess.com"]
[Date "2024.03.19"]
[Round "3"]
[White "IMRosen"]
[Black "secretsuperstar7"]
[Result "0-1"]
[WhiteElo "2644"]
[BlackElo "2502"]
[TimeControl "180+1"]
[EndTime "14:28:29 PDT"]
[Termination "secretsuperstar7 won by checkmate"]

1. e4 {[%clk 0:02:51.8]} 1... c5 {[%clk 0:02:59.5]} 2. Nc3 {[%clk 0:02:51.6]}
2... e5 {[%clk 0:02:56.6]} 3. Bc4 {[%clk 0:02:50.9]} 3... d6 {[%clk 0:02:56.5]}
4. d3 {[%clk 0:02:47.6]} 4... Nf6 {[%clk 0:02:52.4]} 5. f4 {[%clk 0:02:42.8]}
5... exf4 {[%clk 0:02:45.7]} 6. Bxf4 {[%clk 0:02:42.4]} 6... Be7 {[%clk
0:02:44.9]} 7. Nf3 {[%clk 0:02:42.8]} 7... Nc6 {[%clk 0:02:44.7]} 8. O-O {[%clk
0:02:42.8]} 8... O-O {[%clk 0:02:44.7]} 9. Kh1 {[%clk 0:02:38.9]} 9... a6 {[%clk
0:02:31.4]} 10. a4 {[%clk 0:02:38.5]} 10... Bg4 {[%clk 0:02:22.9]} 11. Qe1
{[%clk 0:02:28.1]} 11... Rb8 {[%clk 0:02:08.8]} 12. h3 {[%clk 0:02:16]} 12...
Bxf3 {[%clk 0:02:07.6]} 13. gxf3 {[%clk 0:02:15.9]} 13... Nd4 {[%clk 0:02:05.1]}
14. Qf2 {[%clk 0:02:12.3]} 14... b5 {[%clk 0:02:02.3]} 15. axb5 {[%clk
0:02:09.8]} 15... axb5 {[%clk 0:02:02]} 16. Ba2 {[%clk 0:02:10.4]} 16... b4
{[%clk 0:02:00]} 17. Nd5 {[%clk 0:02:09.1]} 17... Nxd5 {[%clk 0:01:55.6]} 18.
Bxd5 {[%clk 0:02:08.5]} 18... Qd7 {[%clk 0:01:49.1]} 19. Kh2 {[%clk 0:01:42.9]}
19... Kh8 {[%clk 0:01:46]} 20. Rg1 {[%clk 0:01:42.3]} 20... f5 {[%clk
0:01:44.1]} 21. c3 {[%clk 0:01:37.8]} 21... bxc3 {[%clk 0:01:22.2]} 22. bxc3
{[%clk 0:01:37.6]} 22... Nb5 {[%clk 0:01:22.4]} 23. Rac1 {[%clk 0:01:00.8]}
23... fxe4 {[%clk 0:01:18.2]} 24. Qg3 {[%clk 0:00:47.2]} 24... g6 {[%clk
0:01:03.3]} 25. fxe4 {[%clk 0:00:41.3]} 25... Nc7 {[%clk 0:00:54.3]} 26. Bc4
{[%clk 0:00:39.1]} 26... Ne6 {[%clk 0:00:45]} 27. Bh6 {[%clk 0:00:30]} 27... Bf6
{[%clk 0:00:28]} 28. Kh1 {[%clk 0:00:29.9]} 28... Be5 {[%clk 0:00:25.3]} 29. Qg4
{[%clk 0:00:19.5]} 29... Rf2 {[%clk 0:00:23.5]} 30. Rg2 {[%clk 0:00:19.9]} 30...
Rxg2 {[%clk 0:00:18.9]} 31. Qxg2 {[%clk 0:00:18]} 31... Nf4 {[%clk 0:00:16.6]}
32. Bxf4 {[%clk 0:00:14.4]} 32... Bxf4 {[%clk 0:00:16.8]} 33. Rf1 {[%clk
0:00:15.1]} 33... g5 {[%clk 0:00:12.4]} 34. d4 {[%clk 0:00:06.4]} 34... cxd4
{[%clk 0:00:08.5]} 35. cxd4 {[%clk 0:00:07.3]} 35... Qc7 {[%clk 0:00:07.5]} 36.
Bd5 {[%clk 0:00:06]} 36... Qc3 {[%clk 0:00:07]} 37. Rd1 {[%clk 0:00:01.4]} 37...
Rb2 {[%clk 0:00:03.9]} 38. Qg1 {[%clk 0:00:01.2]} 38... Qxh3+ {[%clk 0:00:02.9]}
39. Qh2 {[%clk 0:00:02]} 39... Qxh2# {[%clk 0:00:03.4]} 0-1